[Event "Late-Titled-Tuesday-Blitz-October-24-2023"]
[Site "Chess.com"]
[Date "2023.10.24"]
[Round "1"]
[White "mind1mover"]
[Black "maximnovik"]
[Result "1/2-1/2"]
[WhiteElo "2819"]
[BlackElo "2485"]
[TimeControl "180+1"]
[EndTime "14:07:52 PDT"]
[Termination "Game drawn by repetition"]

1. Nf3 {[%clk 0:03:00.9]} 1... Nf6 {[%clk 0:02:59.7]} 2. b3 {[%clk 0:02:58.7]}
2... g6 {[%clk 0:02:59.1]} 3. Bb2 {[%clk 0:02:59.2]} 3... Bg7 {[%clk 0:03:00]}
4. g3 {[%clk 0:02:59.7]} 4... O-O {[%clk 0:03:00.3]} 5. Bg2 {[%clk 0:03:00.4]}
5... d5 {[%clk 0:03:00]} 6. c4 {[%clk 0:03:00.1]} 6... c5 {[%clk 0:02:59.8]} 7.
cxd5 {[%clk 0:02:59.9]} 7... Nxd5 {[%clk 0:02:57.9]} 8. Bxg7 {[%clk 0:03:00]}
8... Kxg7 {[%clk 0:02:58.1]} 9. O-O {[%clk 0:03:00]} 9... Nc6 {[%clk 0:02:57.7]}
10. d4 {[%clk 0:03:00.3]} 10... cxd4 {[%clk 0:02:52.1]} 11. Nxd4 {[%clk
0:03:01.2]} 11... Nxd4 {[%clk 0:02:51.2]} 12. Qxd4+ {[%clk 0:03:02.1]} 12... Nf6
{[%clk 0:02:51.4]} 13. Qe5 {[%clk 0:03:02.2]} 13... Qb6 {[%clk 0:02:23.1]} 14.
Nc3 {[%clk 0:03:01.3]} 14... Be6 {[%clk 0:02:22.4]} 15. Na4 {[%clk 0:03:01.6]}
15... Qb4 {[%clk 0:02:16.5]} 16. Qc5 {[%clk 0:02:49.9]} 16... Qxc5 {[%clk
0:02:00.7]} 17. Nxc5 {[%clk 0:02:50.8]} 17... Rac8 {[%clk 0:02:00.9]} 18. Nxe6+
{[%clk 0:02:49.6]} 18... fxe6 {[%clk 0:02:01]} 19. Bxb7 {[%clk 0:02:49]} 19...
Rc2 {[%clk 0:02:00.8]} 20. Bf3 {[%clk 0:02:38.5]} 20... Rd8 {[%clk 0:01:57.9]}
21. Rfc1 {[%clk 0:02:34.9]} 21... Rdd2 {[%clk 0:01:56.8]} 22. Rxc2 {[%clk
0:02:35.2]} 22... Rxc2 {[%clk 0:01:57]} 23. Kf1 {[%clk 0:02:35.5]} 23... e5
{[%clk 0:01:56.6]} 24. Ke1 {[%clk 0:02:16.9]} 24... e4 {[%clk 0:01:55.7]} 25.
Kd1 {[%clk 0:02:17.4]} 25... Rc5 {[%clk 0:01:45.1]} 26. Bg2 {[%clk 0:02:17.2]}
26... Ng4 {[%clk 0:01:28.8]} 27. Ke1 {[%clk 0:02:14.4]} 27... e3 {[%clk
0:01:23.2]} 28. fxe3 {[%clk 0:02:07.9]} 28... Nxe3 {[%clk 0:01:22.9]} 29. Be4
{[%clk 0:02:07.7]} 29... Nc2+ {[%clk 0:01:15.4]} 30. Bxc2 {[%clk 0:02:05.9]}
30... Rxc2 {[%clk 0:01:15.8]} 31. Kf2 {[%clk 0:01:51.4]} 31... Rb2 {[%clk
0:01:15.3]} 32. Ke3 {[%clk 0:01:49.5]} 32... Kf6 {[%clk 0:01:15.1]} 33. Kd3
{[%clk 0:01:36.5]} 33... Ke5 {[%clk 0:01:14]} 34. Rf1 {[%clk 0:01:32.9]} 34...
Ke6 {[%clk 0:01:10.3]} 35. Ra1 {[%clk 0:01:25.2]} 35... Ke5 {[%clk 0:01:10.2]}
36. h3 {[%clk 0:01:22.8]} 36... h5 {[%clk 0:01:09]} 37. Ke3 {[%clk 0:01:22.9]}
37... a5 {[%clk 0:01:07.5]} 38. Kd3 {[%clk 0:01:20.5]} 38... Kd5 {[%clk
0:01:05.1]} 39. h4 {[%clk 0:01:13.2]} 39... Ke5 {[%clk 0:01:04.1]} 40. Rf1
{[%clk 0:01:07.4]} 40... Rxa2 {[%clk 0:01:02.3]} 41. Rf7 {[%clk 0:01:05.6]}
41... Ke6 {[%clk 0:01:02]} 42. Rg7 {[%clk 0:01:01]} 42... Kf6 {[%clk 0:01:01.8]}
43. Rg8 {[%clk 0:00:59.6]} 43... Rb2 {[%clk 0:01:01.7]} 44. Rf8+ {[%clk
0:00:50.9]} 44... Ke6 {[%clk 0:00:58.8]} 45. Rb8 {[%clk 0:00:29.7]} 45... a4
{[%clk 0:00:54.2]} 46. Rb6+ {[%clk 0:00:29.7]} 46... Kf7 {[%clk 0:00:52.8]} 47.
b4 {[%clk 0:00:22.1]} 47... a3 {[%clk 0:00:52.6]} 48. e3 {[%clk 0:00:13.4]}
48... a2 {[%clk 0:00:37.8]} 49. Ra6 {[%clk 0:00:13.6]} 49... Rxb4 {[%clk
0:00:37]} 50. Rxa2 {[%clk 0:00:13.2]} 50... Rg4 {[%clk 0:00:37.3]} 51. Rf2+
{[%clk 0:00:09]} 51... Ke6 {[%clk 0:00:37.2]} 52. Rf3 {[%clk 0:00:09.5]} 52...
Ke5 {[%clk 0:00:36.1]} 53. Rf7 {[%clk 0:00:09.7]} 53... e6 {[%clk 0:00:36]} 54.
Rf3 {[%clk 0:00:09.3]} 54... Kd5 {[%clk 0:00:36.2]} 55. Ke2 {[%clk 0:00:04.7]}
55... Ke5 {[%clk 0:00:32.8]} 56. Kd3 {[%clk 0:00:03.3]} 56... Ra4 {[%clk
0:00:27.4]} 57. Rf8 {[%clk 0:00:03]} 57... Rg4 {[%clk 0:00:27.3]} 58. Rf3 {[%clk
0:00:02.5]} 1/2-1/2

[Event "Late-Titled-Tuesday-Blitz-October-24-2023"]
[Site "Chess.com"]
[Date "2023.10.24"]
[Round "1"]
[White "giomar27"]
[Black "Lion-Al-Messi"]
[Result "0-1"]
[WhiteElo "2363"]
[BlackElo "2668"]
[TimeControl "180+1"]
[EndTime "14:07:54 PDT"]
[Termination "Lion-Al-Messi won on time"]

1. Nc3 {[%clk 0:02:59.4]} 1... d5 {[%clk 0:02:58.3]} 2. Nf3 {[%clk 0:02:59.5]}
2... d4 {[%clk 0:02:57.3]} 3. Nb1 {[%clk 0:02:51]} 3... Nf6 {[%clk 0:02:56.1]}
4. d3 {[%clk 0:02:49.2]} 4... c5 {[%clk 0:02:54.9]} 5. e4 {[%clk 0:02:48.1]}
5... dxe3 {[%clk 0:02:53.7]} 6. fxe3 {[%clk 0:02:45.9]} 6... Nc6 {[%clk
0:02:53]} 7. Be2 {[%clk 0:02:45.9]} 7... e5 {[%clk 0:02:52.3]} 8. e4 {[%clk
0:02:45.1]} 8... Bg4 {[%clk 0:02:50.8]} 9. O-O {[%clk 0:02:44.7]} 9... c4 {[%clk
0:02:51.1]} 10. Be3 {[%clk 0:02:44.5]} 10... cxd3 {[%clk 0:02:48.6]} 11. cxd3
{[%clk 0:02:44.4]} 11... Be7 {[%clk 0:02:47.1]} 12. Nbd2 {[%clk 0:02:24.5]}
12... O-O {[%clk 0:02:45.9]} 13. h3 {[%clk 0:02:19.9]} 13... Be6 {[%clk
0:02:40.2]} 14. a3 {[%clk 0:02:15.9]} 14... Qd7 {[%clk 0:02:37.6]} 15. Rc1
{[%clk 0:02:13.9]} 15... Rad8 {[%clk 0:02:37.3]} 16. Qe1 {[%clk 0:02:11.2]}
16... h6 {[%clk 0:02:26.4]} 17. Qf2 {[%clk 0:02:03.4]} 17... b6 {[%clk
0:01:35.6]} 18. b4 {[%clk 0:02:00.8]} 18... Bd6 {[%clk 0:01:33.8]} 19. Nc4
{[%clk 0:01:59.5]} 19... Bxc4 {[%clk 0:01:32.5]} 20. Rxc4 {[%clk 0:01:57.7]}
20... Ne7 {[%clk 0:01:31.7]} 21. Rfc1 {[%clk 0:01:45.1]} 21... Ng6 {[%clk
0:01:25.9]} 22. Nh4 {[%clk 0:01:32.1]} 22... Nf4 {[%clk 0:01:20.5]} 23. Nf5
{[%clk 0:01:28.5]} 23... Bb8 {[%clk 0:01:19.6]} 24. Bf1 {[%clk 0:01:24.6]} 24...
g6 {[%clk 0:00:56.8]} 25. Nxh6+ {[%clk 0:01:23.5]} 25... Kg7 {[%clk 0:00:57.3]}
26. Bxf4 {[%clk 0:01:02.8]} 26... exf4 {[%clk 0:00:56.2]} 27. Ng4 {[%clk
0:00:47.9]} 27... Nxg4 {[%clk 0:00:53.9]} 28. hxg4 {[%clk 0:00:48.8]} 28... Qxg4
{[%clk 0:00:54]} 29. Be2 {[%clk 0:00:47.4]} 29... Qg5 {[%clk 0:00:53.2]} 30. d4
{[%clk 0:00:30.8]} 30... Rh8 {[%clk 0:00:52.9]} 31. d5 {[%clk 0:00:25.6]} 31...
Qh6 {[%clk 0:00:45.6]} 32. Kf1 {[%clk 0:00:22.8]} 32... Be5 {[%clk 0:00:43.4]}
33. Bg4 {[%clk 0:00:17.8]} 33... Qh1+ {[%clk 0:00:42.1]} 34. Ke2 {[%clk
0:00:15.3]} 34... Qh2 {[%clk 0:00:39.3]} 35. Bh3 {[%clk 0:00:12.6]} 35... Rxh3
{[%clk 0:00:20.9]} 36. gxh3 {[%clk 0:00:12]} 36... Qxh3 {[%clk 0:00:21.8]} 37.
Qf3 {[%clk 0:00:10.2]} 37... Qh2+ {[%clk 0:00:22]} 38. Qf2 {[%clk 0:00:10.4]}
38... Qh5+ {[%clk 0:00:19.2]} 39. Qf3 {[%clk 0:00:10.6]} 39... Qg5 {[%clk
0:00:19]} 40. Rh1 {[%clk 0:00:08.7]} 40... Re8 {[%clk 0:00:06.1]} 41. Kd3 {[%clk
0:00:08.7]} 41... Bf6 {[%clk 0:00:05.6]} 42. Qh3 {[%clk 0:00:07.7]} 42... Qe5
{[%clk 0:00:05.1]} 43. Qh7+ {[%clk 0:00:06.3]} 43... Kf8 {[%clk 0:00:05.3]} 44.
Qh6+ {[%clk 0:00:06.5]} 44... Bg7 {[%clk 0:00:05.4]} 45. Qh2 {[%clk 0:00:06.9]}
45... f5 {[%clk 0:00:05.1]} 46. Qg2 {[%clk 0:00:04.1]} 46... Qd6 {[%clk
0:00:03.4]} 47. exf5 {[%clk 0:00:03.1]} 47... Re3+ {[%clk 0:00:02.6]} 48. Kc2
{[%clk 0:00:02.5]} 48... Qe5 {[%clk 0:00:02.3]} 0-1

[Event "Late-Titled-Tuesday-Blitz-October-24-2023"]
[Site "Chess.com"]
[Date "2023.10.24"]
[Round "1"]
[White "ejalmedina"]
[Black "KNVB"]
[Result "0-1"]
[WhiteElo "2342"]
[BlackElo "2647"]
[TimeControl "180+1"]
[EndTime "14:07:56 PDT"]
[Termination "KNVB won on time"]

1. e4 {[%clk 0:02:57.9]} 1... e5 {[%clk 0:02:59.5]} 2. Nf3 {[%clk 0:02:57.4]}
2... Nc6 {[%clk 0:02:59.4]} 3. Bc4 {[%clk 0:02:58]} 3... Nf6 {[%clk 0:02:59.5]}
4. d3 {[%clk 0:02:57.7]} 4... h6 {[%clk 0:02:59.4]} 5. O-O {[%clk 0:02:55]} 5...
d6 {[%clk 0:02:57.1]} 6. a4 {[%clk 0:02:49.5]} 6... g5 {[%clk 0:02:52.1]} 7. a5
{[%clk 0:02:47.6]} 7... a6 {[%clk 0:02:37]} 8. Nc3 {[%clk 0:02:36.2]} 8... Bg7
{[%clk 0:02:28.3]} 9. Nd5 {[%clk 0:02:35.6]} 9... Nxd5 {[%clk 0:02:15.8]} 10.
Bxd5 {[%clk 0:02:31.3]} 10... g4 {[%clk 0:02:16.1]} 11. Ne1 {[%clk 0:02:11.3]}
11... O-O {[%clk 0:01:43.7]} 12. c3 {[%clk 0:02:10.1]} 12... Ne7 {[%clk
0:01:38.1]} 13. Bb3 {[%clk 0:02:04.3]} 13... Kh8 {[%clk 0:01:38.1]} 14. f4
{[%clk 0:02:01.2]} 14... gxf3 {[%clk 0:01:34.3]} 15. Nxf3 {[%clk 0:02:00]} 15...
f5 {[%clk 0:01:35.2]} 16. exf5 {[%clk 0:01:51.2]} 16... Bxf5 {[%clk 0:01:31.3]}
17. d4 {[%clk 0:01:48.9]} 17... e4 {[%clk 0:01:27.1]} 18. Nh4 {[%clk 0:01:47.6]}
18... Bh7 {[%clk 0:01:27.5]} 19. Bf4 {[%clk 0:01:14.2]} 19... Ng6 {[%clk
0:01:07.1]} 20. Nxg6+ {[%clk 0:01:10]} 20... Bxg6 {[%clk 0:01:08]} 21. Qg4
{[%clk 0:01:06.8]} 21... Kh7 {[%clk 0:01:05.8]} 22. Rae1 {[%clk 0:00:59.3]}
22... d5 {[%clk 0:00:53.3]} 23. Qg3 {[%clk 0:00:43.7]} 23... c6 {[%clk
0:00:50.8]} 24. Bc7 {[%clk 0:00:43]} 24... Qg5 {[%clk 0:00:38.8]} 25. Qxg5
{[%clk 0:00:36.3]} 25... hxg5 {[%clk 0:00:39.7]} 26. Bd1 {[%clk 0:00:35.8]}
26... Bf5 {[%clk 0:00:33.2]} 27. b4 {[%clk 0:00:34.9]} 27... Kg6 {[%clk
0:00:30.4]} 28. Bd6 {[%clk 0:00:32.8]} 28... Rfd8 {[%clk 0:00:27.9]} 29. Bc5
{[%clk 0:00:29.7]} 29... Be6 {[%clk 0:00:24.6]} 30. h3 {[%clk 0:00:27.4]} 30...
Rd7 {[%clk 0:00:13.9]} 31. Rf2 {[%clk 0:00:26.6]} 31... Rf7 {[%clk 0:00:06.7]}
32. Re3 {[%clk 0:00:22.1]} 32... Rxf2 {[%clk 0:00:06.5]} 33. Kxf2 {[%clk
0:00:21.9]} 33... Rd8 {[%clk 0:00:05.8]} 34. Re2 {[%clk 0:00:17.6]} 34... g4
{[%clk 0:00:04.3]} 35. Kg3 {[%clk 0:00:16.4]} 35... gxh3 {[%clk 0:00:03.8]} 36.
gxh3 {[%clk 0:00:16.2]} 36... Bh6 {[%clk 0:00:03.7]} 37. Rg2 {[%clk 0:00:14.6]}
37... Kh7 {[%clk 0:00:03.4]} 38. h4 {[%clk 0:00:14]} 38... Rg8+ {[%clk
0:00:02.9]} 39. Kh2 {[%clk 0:00:11.6]} 39... Rxg2+ {[%clk 0:00:03.7]} 40. Kxg2
{[%clk 0:00:12.5]} 40... Bd2 {[%clk 0:00:04.2]} 41. h5 {[%clk 0:00:09.9]} 41...
Bxc3 {[%clk 0:00:03.6]} 42. Kf2 {[%clk 0:00:10.4]} 42... Bd2 {[%clk 0:00:03.4]}
43. Be2 {[%clk 0:00:09.1]} 43... Kh6 {[%clk 0:00:03.3]} 44. Kg3 {[%clk
0:00:09.2]} 44... Bg5 {[%clk 0:00:03.1]} 45. Bg4 {[%clk 0:00:07.1]} 45... Bxg4
{[%clk 0:00:02.6]} 46. Kxg4 {[%clk 0:00:07.6]} 46... Bf6 {[%clk 0:00:02.7]} 47.
Bb6 {[%clk 0:00:05.5]} 47... Kh7 {[%clk 0:00:02.7]} 48. Bc5 {[%clk 0:00:04.3]}
48... Kg8 {[%clk 0:00:02.8]} 49. Kf5 {[%clk 0:00:03.9]} 49... Bg7 {[%clk
0:00:01.6]} 50. Kf4 {[%clk 0:00:03.1]} 50... Bh6+ {[%clk 0:00:01.6]} 51. Kg3
{[%clk 0:00:03]} 51... Kf7 {[%clk 0:00:02.1]} 52. Kf2 {[%clk 0:00:01.5]} 52...
Ke6 {[%clk 0:00:02.5]} 0-1

[Event "Late-Titled-Tuesday-Blitz-October-24-2023"]
[Site "Chess.com"]
[Date "2023.10.24"]
[Round "1"]
[White "Veleamater"]
[Black "pedromartinez91"]
[Result "1-0"]
[WhiteElo "2334"]
[BlackElo "2618"]
[TimeControl "180+1"]
[EndTime "14:08:01 PDT"]
[Termination "Veleamater won on time"]

1. g3 {[%clk 0:03:00.9]} 1... Nf6 {[%clk 0:02:58]} 2. Bg2 {[%clk 0:03:00.4]}
2... e5 {[%clk 0:02:56.9]} 3. d3 {[%clk 0:03:00.5]} 3... d5 {[%clk 0:02:56.3]}
4. Nf3 {[%clk 0:03:00.3]} 4... Nc6 {[%clk 0:02:55.6]} 5. O-O {[%clk 0:02:59.8]}
5... Be7 {[%clk 0:02:53.7]} 6. Nc3 {[%clk 0:02:59.3]} 6... O-O {[%clk
0:02:50.1]} 7. e4 {[%clk 0:02:58.5]} 7... dxe4 {[%clk 0:02:44]} 8. dxe4 {[%clk
0:02:58.2]} 8... Be6 {[%clk 0:02:40.7]} 9. h3 {[%clk 0:02:56.2]} 9... Qc8 {[%clk
0:02:21.6]} 10. g4 {[%clk 0:02:52.2]} 10... Rd8 {[%clk 0:02:17.8]} 11. Qe2
{[%clk 0:02:51.7]} 11... Nd4 {[%clk 0:02:15.1]} 12. Nxd4 {[%clk 0:02:51.2]}
12... Rxd4 {[%clk 0:02:16]} 13. Re1 {[%clk 0:02:36.9]} 13... Bc4 {[%clk
0:02:10.1]} 14. Qf3 {[%clk 0:02:36.3]} 14... Be6 {[%clk 0:02:05.6]} 15. Be3
{[%clk 0:02:27.2]} 15... Rd7 {[%clk 0:02:06]} 16. Rad1 {[%clk 0:02:24.7]} 16...
Ne8 {[%clk 0:02:05.8]} 17. Nd5 {[%clk 0:02:21.1]} 17... Bf8 {[%clk 0:02:04.2]}
18. c4 {[%clk 0:02:19.9]} 18... c6 {[%clk 0:02:01.4]} 19. Bc1 {[%clk 0:02:14.4]}
19... Nd6 {[%clk 0:01:48.9]} 20. b3 {[%clk 0:01:55.5]} 20... b5 {[%clk
0:01:48.1]} 21. c5 {[%clk 0:01:46.9]} 21... Ne8 {[%clk 0:01:29.3]} 22. Ne3
{[%clk 0:01:45.3]} 22... Bxc5 {[%clk 0:01:27.1]} 23. Nf5 {[%clk 0:01:45.2]}
23... Bf8 {[%clk 0:01:22]} 24. Rxd7 {[%clk 0:01:45]} 24... Qxd7 {[%clk
0:01:21.9]} 25. Rd1 {[%clk 0:01:45.4]} 25... Qc7 {[%clk 0:01:22.1]} 26. Qe2
{[%clk 0:01:41]} 26... Rd8 {[%clk 0:01:21.5]} 27. Be3 {[%clk 0:01:38.6]} 27...
a5 {[%clk 0:01:19.3]} 28. Rc1 {[%clk 0:01:36.8]} 28... Qd7 {[%clk 0:01:18.1]}
29. Bb6 {[%clk 0:01:33.7]} 29... Ra8 {[%clk 0:01:15.5]} 30. Qc2 {[%clk
0:01:29.1]} 30... g6 {[%clk 0:01:12]} 31. Ne3 {[%clk 0:01:21.6]} 31... a4 {[%clk
0:01:11.8]} 32. Qxc6 {[%clk 0:01:11.4]} 32... Qxc6 {[%clk 0:01:06.2]} 33. Rxc6
{[%clk 0:01:10.9]} 33... axb3 {[%clk 0:01:07.1]} 34. axb3 {[%clk 0:01:11]} 34...
Bxb3 {[%clk 0:01:07.8]} 35. Nd5 {[%clk 0:01:11]} 35... Bh6 {[%clk 0:00:47.3]}
36. Bf1 {[%clk 0:01:10.7]} 36... Ra1 {[%clk 0:00:41.1]} 37. Kg2 {[%clk
0:01:10.2]} 37... Ra8 {[%clk 0:00:12.2]} 38. Bxb5 {[%clk 0:01:05.8]} 38... Bxd5
{[%clk 0:00:11.6]} 39. exd5 {[%clk 0:01:04.6]} 39... Bf8 {[%clk 0:00:12.2]} 40.
Bc4 {[%clk 0:00:57.9]} 40... Nd6 {[%clk 0:00:12.3]} 41. Be2 {[%clk 0:00:48.1]}
41... Ra2 {[%clk 0:00:11.2]} 42. Bf1 {[%clk 0:00:44]} 42... Rd2 {[%clk
0:00:11.4]} 43. Rc5 {[%clk 0:00:37]} 43... Rxf2+ {[%clk 0:00:09.6]} 44. Kg1
{[%clk 0:00:32.8]} 44... Rd2 {[%clk 0:00:08.7]} 45. Bg2 {[%clk 0:00:30]} 45...
f6 {[%clk 0:00:08]} 46. Rc6 {[%clk 0:00:29.7]} 46... Kf7 {[%clk 0:00:07.8]} 47.
Bc7 {[%clk 0:00:29.3]} 47... Ne8 {[%clk 0:00:05.9]} 48. Bb8 {[%clk 0:00:27.1]}
48... Rb2 {[%clk 0:00:04.3]} 49. Ba7 {[%clk 0:00:27.1]} 49... Bd6 {[%clk
0:00:03.9]} 50. Be4 {[%clk 0:00:26.5]} 50... Ke7 {[%clk 0:00:04]} 51. Be3 {[%clk
0:00:25.7]} 51... Rb7 {[%clk 0:00:03.9]} 52. h4 {[%clk 0:00:25]} 52... Rb4
{[%clk 0:00:02.6]} 53. Bf3 {[%clk 0:00:22.8]} 53... Rb3 {[%clk 0:00:03.1]} 54.
Kf2 {[%clk 0:00:22.6]} 54... Rb2+ {[%clk 0:00:03.5]} 55. Be2 {[%clk 0:00:22.7]}
55... Nc7 {[%clk 0:00:02.9]} 56. h5 {[%clk 0:00:19.8]} 56... Nxd5 {[%clk
0:00:02.1]} 57. Bc1 {[%clk 0:00:19.3]} 57... Ra2 {[%clk 0:00:01.2]} 58. Ke1
{[%clk 0:00:17.4]} 1-0

[Event "Late-Titled-Tuesday-Blitz-October-24-2023"]
[Site "Chess.com"]
[Date "2023.10.24"]
[Round "1"]
[White "acertijo08"]
[Black "tdf98pantani"]
[Result "0-1"]
[WhiteElo "2349"]
[BlackElo "2652"]
[TimeControl "180+1"]
[EndTime "14:08:04 PDT"]
[Termination "tdf98pantani won on time"]

1. e4 {[%clk 0:03:00.9]} 1... c5 {[%clk 0:02:58]} 2. Nf3 {[%clk 0:03:00.1]} 2...
d6 {[%clk 0:02:58.3]} 3. d4 {[%clk 0:02:59.8]} 3... cxd4 {[%clk 0:02:58.5]} 4.
Nxd4 {[%clk 0:03:00.5]} 4... a6 {[%clk 0:02:58.8]} 5. c4 {[%clk 0:02:58.1]} 5...
Nf6 {[%clk 0:02:58.9]} 6. Nc3 {[%clk 0:02:57.8]} 6... e6 {[%clk 0:02:59.1]} 7.
Be2 {[%clk 0:02:57.7]} 7... b6 {[%clk 0:02:59.4]} 8. O-O {[%clk 0:02:56.6]} 8...
Bb7 {[%clk 0:02:59.9]} 9. f3 {[%clk 0:02:56.5]} 9... Nbd7 {[%clk 0:03:00]} 10.
Be3 {[%clk 0:02:56.1]} 10... Be7 {[%clk 0:02:59.2]} 11. a4 {[%clk 0:02:52.4]}
11... O-O {[%clk 0:02:58.6]} 12. a5 {[%clk 0:02:45.4]} 12... bxa5 {[%clk
0:02:58.3]} 13. Nb3 {[%clk 0:02:45.5]} 13... Rb8 {[%clk 0:02:57.5]} 14. Nxa5
{[%clk 0:02:45.2]} 14... Ba8 {[%clk 0:02:57.8]} 15. Qd2 {[%clk 0:02:43.5]} 15...
Nc5 {[%clk 0:02:52.3]} 16. Rfd1 {[%clk 0:02:20.7]} 16... Qc7 {[%clk 0:02:51.8]}
17. b4 {[%clk 0:02:16.3]} 17... Ncd7 {[%clk 0:02:47.1]} 18. b5 {[%clk 0:02:03]}
18... Nc5 {[%clk 0:02:41.8]} 19. bxa6 {[%clk 0:01:46.8]} 19... Nxa6 {[%clk
0:02:14.9]} 20. Nb5 {[%clk 0:01:46.5]} 20... Qc8 {[%clk 0:02:08.5]} 21. Ba7
{[%clk 0:01:31]} 21... Rd8 {[%clk 0:01:56.3]} 22. Bxb8 {[%clk 0:01:26.8]} 22...
Qxb8 {[%clk 0:01:57.2]} 23. Rdb1 {[%clk 0:01:19.2]} 23... Nc5 {[%clk 0:01:50.2]}
24. Nb3 {[%clk 0:01:09.9]} 24... d5 {[%clk 0:01:43.5]} 25. cxd5 {[%clk
0:01:07.5]} 25... exd5 {[%clk 0:01:42.8]} 26. exd5 {[%clk 0:00:48.4]} 26... Bxd5
{[%clk 0:01:39.5]} 27. Nxc5 {[%clk 0:00:38.2]} 27... Bxc5+ {[%clk 0:01:38.9]}
28. Kh1 {[%clk 0:00:38.7]} 28... Be4 {[%clk 0:01:22.5]} 29. Qc1 {[%clk
0:00:30.6]} 29... Bxb1 {[%clk 0:01:18.1]} 30. Qxc5 {[%clk 0:00:29.7]} 30... Bg6
{[%clk 0:01:11.1]} 31. Qc7 {[%clk 0:00:20.5]} 31... h5 {[%clk 0:01:04.8]} 32.
Qxb8 {[%clk 0:00:20.2]} 32... Rxb8 {[%clk 0:01:05.7]} 33. Nd6 {[%clk 0:00:20]}
33... Rb2 {[%clk 0:01:04.8]} 34. Bc4 {[%clk 0:00:19.1]} 34... Rd2 {[%clk
0:01:02.6]} 35. Nb5 {[%clk 0:00:16.6]} 35... h4 {[%clk 0:01:00.7]} 36. h3 {[%clk
0:00:16.5]} 36... Nh5 {[%clk 0:01:00.9]} 37. Ra8+ {[%clk 0:00:14.4]} 37... Kh7
{[%clk 0:01:00.7]} 38. Ra1 {[%clk 0:00:14.3]} 38... Nf4 {[%clk 0:00:58.6]} 39.
Bf1 {[%clk 0:00:13.4]} 39... Bd3 {[%clk 0:00:52.1]} 40. Bxd3+ {[%clk 0:00:10.9]}
40... Rxd3 {[%clk 0:00:52.2]} 41. Ra4 {[%clk 0:00:10.2]} 41... g5 {[%clk
0:00:51.1]} 42. Ra1 {[%clk 0:00:09.7]} 42... Rd2 {[%clk 0:00:49.9]} 43. Nc3
{[%clk 0:00:09.1]} 43... Rxg2 {[%clk 0:00:47.6]} 44. Ne4 {[%clk 0:00:09.4]}
44... Kg7 {[%clk 0:00:28.4]} 45. Ra5 {[%clk 0:00:07.8]} 45... f6 {[%clk
0:00:28.1]} 46. Ra7+ {[%clk 0:00:07.5]} 46... Kg6 {[%clk 0:00:26.3]} 47. Ra6
{[%clk 0:00:08.1]} 47... Rc2 {[%clk 0:00:18.1]} 48. Rxf6+ {[%clk 0:00:08.1]}
48... Kg7 {[%clk 0:00:14]} 49. Rf5 {[%clk 0:00:08.5]} 49... Nxh3 {[%clk
0:00:07.2]} 50. Nxg5 {[%clk 0:00:08.6]} 50... Kg6 {[%clk 0:00:05.8]} 51. Nxh3
{[%clk 0:00:03.7]} 51... Kxf5 {[%clk 0:00:06.1]} 52. Ng1 {[%clk 0:00:02.9]}
52... Kf4 {[%clk 0:00:06]} 0-1

[Event "Late-Titled-Tuesday-Blitz-October-24-2023"]
[Site "Chess.com"]
[Date "2023.10.24"]
[Round "1"]
[White "DvaHrasta"]
[Black "GMKrikor"]
[Result "1/2-1/2"]
[WhiteElo "2485"]
[BlackElo "2822"]
[TimeControl "180+1"]
[EndTime "14:08:07 PDT"]
[Termination "Game drawn by repetition"]

1. c4 {[%clk 0:02:52.6]} 1... c5 {[%clk 0:02:56.9]} 2. g3 {[%clk 0:02:51.9]}
2... Nc6 {[%clk 0:02:56.5]} 3. Bg2 {[%clk 0:02:52]} 3... g6 {[%clk 0:02:57.2]}
4. Nc3 {[%clk 0:02:51.9]} 4... Bg7 {[%clk 0:02:56.8]} 5. Nf3 {[%clk 0:02:52]}
5... d6 {[%clk 0:02:55.2]} 6. O-O {[%clk 0:02:51.5]} 6... e5 {[%clk 0:02:55.9]}
7. Ne1 {[%clk 0:02:50.8]} 7... Be6 {[%clk 0:02:56]} 8. Qa4 {[%clk 0:02:50.2]}
8... Ne7 {[%clk 0:02:50.1]} 9. Nc2 {[%clk 0:02:50.2]} 9... h5 {[%clk 0:02:50]}
10. Ne3 {[%clk 0:02:50.2]} 10... h4 {[%clk 0:02:49.5]} 11. Ned5 {[%clk
0:02:50.4]} 11... hxg3 {[%clk 0:02:45.9]} 12. fxg3 {[%clk 0:02:50.1]} 12... Bh3
{[%clk 0:01:51.1]} 13. Nxe7 {[%clk 0:02:38.8]} 13... Bxg2 {[%clk 0:01:44.7]} 14.
Kxg2 {[%clk 0:02:30.6]} 14... Qxe7 {[%clk 0:01:41.9]} 15. Nd5 {[%clk 0:02:20.7]}
15... Qd7 {[%clk 0:01:41.9]} 16. h4 {[%clk 0:02:19.5]} 16... f5 {[%clk
0:01:13.8]} 17. d3 {[%clk 0:02:12.6]} 17... f4 {[%clk 0:01:05.4]} 18. Rf3 {[%clk
0:01:54.3]} 18... g5 {[%clk 0:00:46]} 19. Bd2 {[%clk 0:01:11.2]} 19... Rc8
{[%clk 0:00:30.5]} 20. Rh1 {[%clk 0:01:02]} 20... Nd4 {[%clk 0:00:16.3]} 21.
Qxd7+ {[%clk 0:00:56.9]} 21... Kxd7 {[%clk 0:00:17.2]} 22. Rf2 {[%clk
0:00:54.5]} 22... gxh4 {[%clk 0:00:16.7]} 23. gxf4 {[%clk 0:00:52.5]} 23... Rcf8
{[%clk 0:00:16.7]} 24. e3 {[%clk 0:00:43.2]} 24... Nf5 {[%clk 0:00:15.2]} 25.
fxe5 {[%clk 0:00:41.2]} 25... Bxe5 {[%clk 0:00:16.1]} 26. Kh3 {[%clk 0:00:32.5]}
26... Bg3 {[%clk 0:00:12]} 27. Rf3 {[%clk 0:00:29.5]} 27... Ne7 {[%clk
0:00:10.9]} 28. Rhf1 {[%clk 0:00:27.4]} 28... Rxf3 {[%clk 0:00:06.8]} 29. Rxf3
{[%clk 0:00:27.5]} 29... Nxd5 {[%clk 0:00:06.2]} 30. cxd5 {[%clk 0:00:27.7]}
30... Rh7 {[%clk 0:00:06.8]} 31. e4 {[%clk 0:00:26.5]} 31... Be5 {[%clk
0:00:06.6]} 32. b3 {[%clk 0:00:23.8]} 32... b5 {[%clk 0:00:07.3]} 33. Bg5 {[%clk
0:00:22.8]} 33... Kc7 {[%clk 0:00:06.2]} 34. Bxh4 {[%clk 0:00:21]} 34... Kb6
{[%clk 0:00:06.8]} 35. Kg4 {[%clk 0:00:20.6]} 35... Rg7+ {[%clk 0:00:06.9]} 36.
Bg5 {[%clk 0:00:20.6]} 36... Ka5 {[%clk 0:00:06.2]} 37. Kf5 {[%clk 0:00:17.7]}
37... Rf7+ {[%clk 0:00:06.6]} 38. Kg4 {[%clk 0:00:17.7]} 38... Rh7 {[%clk
0:00:07.3]} 39. Bd2+ {[%clk 0:00:17]} 39... b4 {[%clk 0:00:06.9]} 40. Rh3 {[%clk
0:00:15.2]} 40... Rg7+ {[%clk 0:00:05.1]} 41. Kf3 {[%clk 0:00:15.5]} 41... Rf7+
{[%clk 0:00:05.8]} 42. Ke2 {[%clk 0:00:15.4]} 42... Bd4 {[%clk 0:00:06.5]} 43.
Be1 {[%clk 0:00:11.8]} 43... Kb5 {[%clk 0:00:06]} 44. Rh6 {[%clk 0:00:10.8]}
44... Be5 {[%clk 0:00:06.5]} 45. Re6 {[%clk 0:00:09.3]} 45... Rg7 {[%clk
0:00:06.3]} 46. Bf2 {[%clk 0:00:08.9]} 46... Rg2 {[%clk 0:00:05.6]} 47. Kf3
{[%clk 0:00:08.9]} 47... Rh2 {[%clk 0:00:06.1]} 48. Re8 {[%clk 0:00:08.6]} 48...
Rh3+ {[%clk 0:00:06.1]} 49. Ke2 {[%clk 0:00:08.8]} 49... Rh2 {[%clk 0:00:04.8]}
50. Kf3 {[%clk 0:00:09]} 50... Rh3+ {[%clk 0:00:05.4]} 51. Ke2 {[%clk
0:00:08.8]} 51... a5 {[%clk 0:00:06.1]} 52. Rb8+ {[%clk 0:00:08.1]} 52... Ka6
{[%clk 0:00:06.8]} 53. Re8 {[%clk 0:00:07.3]} 53... Kb5 {[%clk 0:00:06.3]} 54.
Rb8+ {[%clk 0:00:06.5]} 54... Ka6 {[%clk 0:00:06.8]} 55. Re8 {[%clk 0:00:06.7]}
55... Rh5 {[%clk 0:00:06]} 56. Kf3 {[%clk 0:00:05.1]} 56... Rh3+ {[%clk
0:00:05.2]} 57. Ke2 {[%clk 0:00:04.5]} 1/2-1/2